[Event "Titled Tuesday Blitz September 27 Late 2022"]
[White "Bartel, Mateusz"]
[Black "Wagner, Dennis"]
[WhiteFideId "1112635"]
[BlackFideId "24650684"]
[WhiteElo "2526"]
[BlackElo "2355"]
[Result "0-1"]
[Round "11"]
[TimeControl "180+1"]
[Date "2022.09.27"]
[WhiteClock "0:00:01"]
[BlackClock "0:00:01"]

1. Nf3 {[%clk 0:03:00]}  Nf6 {[%clk 0:02:59]} 2. c4 {[%clk 0:03:00]}  c5 {[%clk 0:02:59]} 3. b3 {[%clk 0:02:56]}  e6 {[%clk 0:02:57]} 4. Bb2 {[%clk 0:02:55]}  d5 {[%clk 0:02:57]} 5. e3 {[%clk 0:02:56]}  Nc6 {[%clk 0:02:57]} 6. cxd5 {[%clk 0:02:55]}  exd5 {[%clk 0:02:58]} 7. Bb5 {[%clk 0:02:53]}  Bd6 {[%clk 0:02:58]} 8. O-O {[%clk 0:02:51]}  O-O {[%clk 0:02:58]} 9. Nc3 {[%clk 0:02:51]}  Bg4 {[%clk 0:02:57]} 10. h3 {[%clk 0:02:50]}  Bh5 {[%clk 0:02:56]} 11. Bxc6 {[%clk 0:02:40]}  bxc6 {[%clk 0:02:56]} 12. Rc1 {[%clk 0:02:40]}  Re8 {[%clk 0:02:53]} 13. Na4 {[%clk 0:02:38]}  Nd7 {[%clk 0:02:49]} 14. d4 {[%clk 0:02:34]}  cxd4 {[%clk 0:02:46]} 15. Qxd4 {[%clk 0:02:27]}  Bf8 {[%clk 0:02:06]} 16. g4 {[%clk 0:01:52]}  Re4 {[%clk 0:02:04]} 17. Qd1 {[%clk 0:01:46]}  Bxg4 {[%clk 0:02:02]} 18. hxg4 {[%clk 0:01:47]}  Rxg4+ {[%clk 0:02:03]} 19. Kh1 {[%clk 0:01:46]}  Rh4+ {[%clk 0:00:48]} 20. Kg2 {[%clk 0:01:02]}  Rg4+ {[%clk 0:00:48]} 21. Kh3 {[%clk 0:01:02]}  Qc8 {[%clk 0:00:48]} 22. Rg1 {[%clk 0:00:31]}  Ne5 {[%clk 0:00:42]} 23. Kh2 {[%clk 0:00:31]}  Bd6 {[%clk 0:00:05]} 24. Rxg4 {[%clk 0:00:06]}  Nxf3+ {[%clk 0:00:04]} 25. Kg2 {[%clk 0:00:04]}  Qxg4+ {[%clk 0:00:04]} 26. Kf1 {[%clk 0:00:05]}  Re8 {[%clk 0:00:03]} 27. Ke2 {[%clk 0:00:05]}  Nd4+ {[%clk 0:00:03]} 28. Kd2 {[%clk 0:00:05]}  Bb4+ {[%clk 0:00:02]} 29. Nc3 {[%clk 0:00:03]}  Nf3+ {[%clk 0:00:02]} 30. Kc2 {[%clk 0:00:03]}  d4 {[%clk 0:00:01]} 31. exd4 {[%clk 0:00:02]}  Qf5+ {[%clk 0:00:01]} 32. Qd3 {[%clk 0:00:01]}  Nxd4+ {[%clk 0:00:01]} 0-1


[Site "https://www.chess.com"]

[Event "Titled Tuesday Blitz September 27 Late 2022"]
[White "Bluebaum, Matthias"]
[Black "Sokolovsky, Yahli"]
[WhiteFideId "24651516"]
[BlackFideId "2820242"]
[WhiteElo "2633"]
[BlackElo "1920"]
[Result "1-0"]
[Round "11"]
[TimeControl "180+1"]
[Date "2022.09.27"]
[WhiteClock "0:00:02"]
[BlackClock "0:00:06"]

1. d4 {[%clk 0:03:00]}  d6 {[%clk 0:03:00]} 2. Nf3 {[%clk 0:03:01]}  g6 {[%clk 0:02:59]} 3. c4 {[%clk 0:03:02]}  Bg7 {[%clk 0:02:59]} 4. Nc3 {[%clk 0:03:02]}  Nf6 {[%clk 0:02:56]} 5. e4 {[%clk 0:03:03]}  O-O {[%clk 0:02:57]} 6. Be2 {[%clk 0:03:03]}  Bg4 {[%clk 0:02:56]} 7. Be3 {[%clk 0:03:03]}  Bxf3 {[%clk 0:02:51]} 8. gxf3 {[%clk 0:03:02]}  e5 {[%clk 0:02:52]} 9. d5 {[%clk 0:03:02]}  Nh5 {[%clk 0:02:51]} 10. Qd2 {[%clk 0:02:47]}  Nf4 {[%clk 0:02:50]} 11. Bxf4 {[%clk 0:02:45]}  exf4 {[%clk 0:02:51]} 12. Qxf4 {[%clk 0:02:46]}  Nd7 {[%clk 0:02:50]} 13. h4 {[%clk 0:02:45]}  h5 {[%clk 0:02:50]} 14. Qe3 {[%clk 0:02:41]}  Qf6 {[%clk 0:02:48]} 15. f4 {[%clk 0:02:13]}  Bh6 {[%clk 0:02:46]} 16. Qh3 {[%clk 0:02:13]}  Nc5 {[%clk 0:02:27]} 17. f5 {[%clk 0:02:12]}  Rae8 {[%clk 0:02:15]} 18. Qg2 {[%clk 0:02:09]}  Kh7 {[%clk 0:02:08]} 19. fxg6+ {[%clk 0:01:43]}  fxg6 {[%clk 0:02:08]} 20. Rh3 {[%clk 0:01:30]}  Qf4 {[%clk 0:01:54]} 21. Kf1 {[%clk 0:01:07]}  Qd2 {[%clk 0:01:10]} 22. Rb1 {[%clk 0:00:55]}  Rf4 {[%clk 0:01:04]} 23. Rf3 {[%clk 0:00:41]}  Ref8 {[%clk 0:01:04]} 24. Rxf4 {[%clk 0:00:41]}  Qxf4 {[%clk 0:01:03]} 25. b4 {[%clk 0:00:32]}  Nd7 {[%clk 0:00:58]} 26. Rd1 {[%clk 0:00:27]}  Ne5 {[%clk 0:00:54]} 27. Nb5 {[%clk 0:00:27]}  Qxh4 {[%clk 0:00:47]} 28. Nxc7 {[%clk 0:00:25]}  Be3 {[%clk 0:00:46]} 29. f3 {[%clk 0:00:22]}  Ng4 {[%clk 0:00:47]} 30. Bd3 {[%clk 0:00:11]}  Rxf3+ {[%clk 0:00:34]} 31. Qxf3 {[%clk 0:00:12]}  Nh2+ {[%clk 0:00:35]} 32. Ke2 {[%clk 0:00:12]}  Nxf3 {[%clk 0:00:36]} 33. Kxe3 {[%clk 0:00:13]}  Qg3 {[%clk 0:00:30]} 34. Ne6 {[%clk 0:00:11]}  Ne5+ {[%clk 0:00:23]} 35. Kd4 {[%clk 0:00:11]}  Qf2+ {[%clk 0:00:15]} 36. Kc3 {[%clk 0:00:12]}  Qxa2 {[%clk 0:00:16]} 37. Bc2 {[%clk 0:00:11]}  h4 {[%clk 0:00:13]} 38. Bb3 {[%clk 0:00:09]}  Qf2 {[%clk 0:00:13]} 39. c5 {[%clk 0:00:09]}  Qe3+ {[%clk 0:00:11]} 40. Kb2 {[%clk 0:00:09]}  Nd3+ {[%clk 0:00:12]} 41. Ka3 {[%clk 0:00:08]}  dxc5 {[%clk 0:00:12]} 42. bxc5 {[%clk 0:00:07]}  Qe2 {[%clk 0:00:06]} 43. Rb1 {[%clk 0:00:02]} 1-0


[Site "https://www.chess.com"]

[Event "Titled Tuesday Blitz September 27 Late 2022"]
[White "Boros, Denes"]
[Black "Mihajlov, Sebastian"]
[WhiteFideId "722340"]
[BlackFideId "1512110"]
[WhiteElo "2464"]
[BlackElo "2464"]
[Result "1-0"]
[Round "11"]
[TimeControl "180+1"]
[Date "2022.09.27"]
[WhiteClock "0:01:15"]
[BlackClock "0:00:02"]

1. d4 {[%clk 0:02:58]}  Nf6 {[%clk 0:02:58]} 2. Bg5 {[%clk 0:02:55]}  b6 {[%clk 0:02:59]} 3. Nf3 {[%clk 0:02:54]}  e6 {[%clk 0:02:49]} 4. a4 {[%clk 0:02:52]}  Bb7 {[%clk 0:02:48]} 5. a5 {[%clk 0:02:52]}  b5 {[%clk 0:02:45]} 6. a6 {[%clk 0:02:47]}  Nxa6 {[%clk 0:02:27]} 7. e4 {[%clk 0:02:46]}  c6 {[%clk 0:02:23]} 8. e5 {[%clk 0:02:41]}  h6 {[%clk 0:02:24]} 9. Bh4 {[%clk 0:02:34]}  g5 {[%clk 0:02:24]} 10. Bg3 {[%clk 0:02:27]}  Ne4 {[%clk 0:02:18]} 11. Nc3 {[%clk 0:02:19]}  Bb4 {[%clk 0:02:15]} 12. Qd3 {[%clk 0:02:17]}  d5 {[%clk 0:01:14]} 13. exd6 {[%clk 0:02:13]}  Nxg3 {[%clk 0:01:12]} 14. hxg3 {[%clk 0:02:12]}  Bxd6 {[%clk 0:01:06]} 15. Nxb5 {[%clk 0:02:09]}  Be7 {[%clk 0:00:35]} 16. Qd2 {[%clk 0:01:57]}  Nc7 {[%clk 0:00:22]} 17. Nxc7+ {[%clk 0:01:51]}  Qxc7 {[%clk 0:00:23]} 18. Bc4 {[%clk 0:01:50]}  c5 {[%clk 0:00:21]} 19. d5 {[%clk 0:01:43]}  Rd8 {[%clk 0:00:18]} 20. Qc3 {[%clk 0:01:43]}  f6 {[%clk 0:00:13]} 21. dxe6 {[%clk 0:01:40]}  Qb6 {[%clk 0:00:10]} 22. O-O {[%clk 0:01:31]}  O-O {[%clk 0:00:08]} 23. Rad1 {[%clk 0:01:29]}  Kg7 {[%clk 0:00:08]} 24. Rd7 {[%clk 0:01:28]}  Rxd7 {[%clk 0:00:08]} 25. exd7 {[%clk 0:01:28]}  Qd6 {[%clk 0:00:07]} 26. Re1 {[%clk 0:01:27]}  Qxd7 {[%clk 0:00:06]} 27. Qb3 {[%clk 0:01:17]}  Qc7 {[%clk 0:00:01]} 28. Bd5 {[%clk 0:01:16]}  Bd6 {[%clk 0:00:02]} 29. Qxb7 {[%clk 0:01:15]} 1-0


[Site "https://www.chess.com"]

[Event "Titled Tuesday Blitz September 27 Late 2022"]
[White "Bryakin, Mikhail"]
[Black "Gubajdullin, Alexei"]
[WhiteFideId "4165314"]
[BlackFideId "4141202"]
[WhiteElo "2357"]
[BlackElo "2195"]
[Result "1-0"]
[Round "11"]
[TimeControl "180+1"]
[Date "2022.09.27"]
[WhiteClock "0:00:37"]
[BlackClock "0:00:06"]

1. e4 {[%clk 0:02:53]}  c6 {[%clk 0:02:58]} 2. Nf3 {[%clk 0:02:52]}  d5 {[%clk 0:02:58]} 3. Nc3 {[%clk 0:02:52]}  Bg4 {[%clk 0:02:56]} 4. h3 {[%clk 0:02:52]}  Bxf3 {[%clk 0:02:56]} 5. Qxf3 {[%clk 0:02:53]}  e6 {[%clk 0:02:56]} 6. Be2 {[%clk 0:02:52]}  g6 {[%clk 0:02:56]} 7. d4 {[%clk 0:02:49]}  Bg7 {[%clk 0:02:55]} 8. Be3 {[%clk 0:02:48]}  Nd7 {[%clk 0:02:55]} 9. O-O-O {[%clk 0:02:49]}  Ne7 {[%clk 0:02:54]} 10. g4 {[%clk 0:02:49]}  Qa5 {[%clk 0:02:52]} 11. Kb1 {[%clk 0:02:49]}  b5 {[%clk 0:02:49]} 12. Bd3 {[%clk 0:02:48]}  b4 {[%clk 0:02:46]} 13. Ne2 {[%clk 0:02:49]}  c5 {[%clk 0:02:32]} 14. exd5 {[%clk 0:02:49]}  Nxd5 {[%clk 0:02:30]} 15. Nf4 {[%clk 0:02:47]}  cxd4 {[%clk 0:02:16]} 16. Nxd5 {[%clk 0:02:30]}  exd5 {[%clk 0:02:16]} 17. Bf4 {[%clk 0:02:11]}  O-O {[%clk 0:02:15]} 18. h4 {[%clk 0:02:11]}  Nb6 {[%clk 0:02:01]} 19. h5 {[%clk 0:02:09]}  Nc4 {[%clk 0:02:00]} 20. Qh3 {[%clk 0:02:00]}  g5 {[%clk 0:01:29]} 21. Bxg5 {[%clk 0:01:58]}  Na3+ {[%clk 0:01:26]} 22. Kc1 {[%clk 0:01:58]}  Rfc8 {[%clk 0:01:16]} 23. bxa3 {[%clk 0:01:39]}  bxa3 {[%clk 0:01:14]} 24. h6 {[%clk 0:01:16]}  Be5 {[%clk 0:00:45]} 25. Rde1 {[%clk 0:01:14]}  f6 {[%clk 0:00:40]} 26. Qf3 {[%clk 0:01:03]}  Rf8 {[%clk 0:00:10]} 27. Qf5 {[%clk 0:01:01]}  Qc7 {[%clk 0:00:10]} 28. f4 {[%clk 0:00:54]}  Bd6 {[%clk 0:00:09]} 29. Bxf6 {[%clk 0:00:53]}  Bxf4+ {[%clk 0:00:09]} 30. Kd1 {[%clk 0:00:53]}  Rab8 {[%clk 0:00:08]} 31. Qxd5+ {[%clk 0:00:44]}  Rf7 {[%clk 0:00:06]} 32. Re7 {[%clk 0:00:37]} 1-0


[Site "https://www.chess.com"]

[Event "Titled Tuesday Blitz September 27 Late 2022"]
[White "Diaz Rosas, Julio Cesar"]
[Black "Brodowski, Piotr"]
[WhiteFideId "5105099"]
[BlackFideId "1124480"]
[WhiteElo "2278"]
[BlackElo "2312"]
[Result "0-1"]
[Round "11"]
[TimeControl "180+1"]
[Date "2022.09.28"]
[WhiteClock "0:00:02"]
[BlackClock "0:00:09"]

1. e4 {[%clk 0:03:00]}  d6 {[%clk 0:02:43]} 2. d4 {[%clk 0:02:59]}  g6 {[%clk 0:02:42]} 3. Nc3 {[%clk 0:02:59]}  Bg7 {[%clk 0:02:42]} 4. Bg5 {[%clk 0:02:54]}  h6 {[%clk 0:02:42]} 5. Be3 {[%clk 0:02:54]}  a6 {[%clk 0:02:42]} 6. a4 {[%clk 0:02:52]}  Nf6 {[%clk 0:02:41]} 7. Qd2 {[%clk 0:02:49]}  Ng4 {[%clk 0:02:36]} 8. Bf4 {[%clk 0:02:47]}  Nc6 {[%clk 0:02:30]} 9. Nf3 {[%clk 0:02:44]}  Nxd4 {[%clk 0:02:24]} 10. Nxd4 {[%clk 0:02:40]}  e5 {[%clk 0:02:24]} 11. h3 {[%clk 0:02:31]}  exd4 {[%clk 0:02:23]} 12. hxg4 {[%clk 0:02:28]}  dxc3 {[%clk 0:02:23]} 13. bxc3 {[%clk 0:02:27]}  Qf6 {[%clk 0:02:17]} 14. Ra3 {[%clk 0:02:26]}  g5 {[%clk 0:02:15]} 15. Be3 {[%clk 0:02:26]}  Bxg4 {[%clk 0:02:13]} 16. Rb3 {[%clk 0:02:22]}  b6 {[%clk 0:02:08]} 17. Qd5 {[%clk 0:02:16]}  O-O {[%clk 0:02:07]} 18. Qc6 {[%clk 0:02:03]}  a5 {[%clk 0:01:53]} 19. Bc4 {[%clk 0:01:44]}  Qe7 {[%clk 0:01:39]} 20. Bd5 {[%clk 0:01:36]}  Rac8 {[%clk 0:01:35]} 21. Kd2 {[%clk 0:01:21]}  Bd7 {[%clk 0:01:34]} 22. Qb7 {[%clk 0:01:18]}  c6 {[%clk 0:01:32]} 23. Bc4 {[%clk 0:01:18]}  d5 {[%clk 0:01:30]} 24. exd5 {[%clk 0:01:16]}  cxd5 {[%clk 0:01:30]} 25. Bd3 {[%clk 0:01:08]}  Rb8 {[%clk 0:01:18]} 26. Qxd5 {[%clk 0:00:48]}  Be6 {[%clk 0:01:04]} 27. Qb5 {[%clk 0:00:38]}  Bxb3 {[%clk 0:00:58]} 28. Qf5 {[%clk 0:00:20]}  Rfc8 {[%clk 0:00:30]} 29. Rxh6 {[%clk 0:00:12]}  Be6 {[%clk 0:00:18]} 30. Qh7+ {[%clk 0:00:11]}  Kf8 {[%clk 0:00:18]} 31. Rh5 {[%clk 0:00:10]}  Bxc3+ {[%clk 0:00:14]} 32. Kc1 {[%clk 0:00:07]}  Qa3+ {[%clk 0:00:14]} 33. Kd1 {[%clk 0:00:07]}  Bg4+ {[%clk 0:00:11]} 34. f3 {[%clk 0:00:07]}  Bxh5 {[%clk 0:00:11]} 35. Qxh5 {[%clk 0:00:04]}  Qa1+ {[%clk 0:00:11]} 36. Bc1 {[%clk 0:00:04]}  Bg7 {[%clk 0:00:10]} 37. Qxg5 {[%clk 0:00:03]}  Qf6 {[%clk 0:00:10]} 38. Qg3 {[%clk 0:00:03]}  Re8 {[%clk 0:00:10]} 39. Ba3+ {[%clk 0:00:02]}  Kg8 {[%clk 0:00:09]} 40. Qh3 {[%clk 0:00:02]}  Qh6 {[%clk 0:00:09]} 0-1


[Site "https://www.chess.com"]

[Event "Titled Tuesday Blitz September 27 Late 2022"]
[White "Fawzy, Adham"]
[Black "Besedes, Danilo"]
[WhiteFideId "10613129"]
[BlackFideId "946796"]
[WhiteElo "2541"]
[BlackElo "2352"]
[Result "1/2-1/2"]
[Round "11"]
[TimeControl "180+1"]
[Date "2022.09.27"]
[WhiteClock "0:00:08"]
[BlackClock "0:00:06"]

1. e4 {[%clk 0:03:00]}  e6 {[%clk 0:02:59]} 2. d4 {[%clk 0:02:58]}  d5 {[%clk 0:02:59]} 3. Nc3 {[%clk 0:02:58]}  Be7 {[%clk 0:02:58]} 4. Nf3 {[%clk 0:02:56]}  dxe4 {[%clk 0:02:52]} 5. Nxe4 {[%clk 0:02:56]}  Nd7 {[%clk 0:02:53]} 6. g4 {[%clk 0:02:55]}  b6 {[%clk 0:02:50]} 7. Bg2 {[%clk 0:02:55]}  Bb7 {[%clk 0:02:50]} 8. Qe2 {[%clk 0:02:51]}  Ngf6 {[%clk 0:02:47]} 9. Nxf6+ {[%clk 0:02:52]}  Nxf6 {[%clk 0:02:46]} 10. g5 {[%clk 0:02:52]}  Nd7 {[%clk 0:02:39]} 11. Bf4 {[%clk 0:02:48]}  c5 {[%clk 0:02:38]} 12. O-O-O {[%clk 0:02:48]}  cxd4 {[%clk 0:02:37]} 13. Rxd4 {[%clk 0:02:45]}  Qc8 {[%clk 0:02:13]} 14. Rhd1 {[%clk 0:02:23]}  Nc5 {[%clk 0:02:05]} 15. h3 {[%clk 0:01:56]}  O-O {[%clk 0:01:56]} 16. Kb1 {[%clk 0:01:55]}  Rd8 {[%clk 0:01:50]} 17. Rxd8+ {[%clk 0:01:49]}  Bxd8 {[%clk 0:01:51]} 18. h4 {[%clk 0:01:50]}  Be7 {[%clk 0:01:47]} 19. h5 {[%clk 0:01:50]}  Qe8 {[%clk 0:01:25]} 20. h6 {[%clk 0:01:49]}  Rd8 {[%clk 0:01:14]} 21. hxg7 {[%clk 0:01:39]}  Rxd1+ {[%clk 0:01:13]} 22. Qxd1 {[%clk 0:01:40]}  Kxg7 {[%clk 0:01:10]} 23. Be5+ {[%clk 0:01:13]}  Kg8 {[%clk 0:01:10]} 24. Bf6 {[%clk 0:01:13]}  Ne4 {[%clk 0:00:56]} 25. Ne5 {[%clk 0:01:03]}  Bd5 {[%clk 0:00:48]} 26. c4 {[%clk 0:00:52]}  Nxf2 {[%clk 0:00:42]} 27. Qf1 {[%clk 0:00:41]}  Be4+ {[%clk 0:00:38]} 28. Kc1 {[%clk 0:00:38]}  Bc5 {[%clk 0:00:22]} 29. Bxe4 {[%clk 0:00:36]}  Nxe4 {[%clk 0:00:21]} 30. Qd3 {[%clk 0:00:33]}  Nd6 {[%clk 0:00:18]} 31. Ng4 {[%clk 0:00:33]}  Nf5 {[%clk 0:00:15]} 32. Nh6+ {[%clk 0:00:32]}  Nxh6 {[%clk 0:00:12]} 33. gxh6 {[%clk 0:00:33]}  Qb8 {[%clk 0:00:10]} 34. Qf3 {[%clk 0:00:25]}  Qh2 {[%clk 0:00:10]} 35. Qg4+ {[%clk 0:00:24]}  Kf8 {[%clk 0:00:08]} 36. Qg7+ {[%clk 0:00:24]}  Ke8 {[%clk 0:00:09]} 37. Qg8+ {[%clk 0:00:25]}  Bf8 {[%clk 0:00:09]} 38. Bg7 {[%clk 0:00:10]}  Qf4+ {[%clk 0:00:09]} 39. Kd1 {[%clk 0:00:09]}  Qf3+ {[%clk 0:00:08]} 40. Kd2 {[%clk 0:00:10]}  Qf4+ {[%clk 0:00:07]} 41. Kc3 {[%clk 0:00:08]}  Qe3+ {[%clk 0:00:07]} 42. Kc2 {[%clk 0:00:09]}  Qe2+ {[%clk 0:00:06]} 43. Kb3 {[%clk 0:00:09]}  Qd1+ {[%clk 0:00:06]} 44. Kc3 {[%clk 0:00:08]}  Qe1+ {[%clk 0:00:06]} 45. Kd3 {[%clk 0:00:08]}  Qd1+ {[%clk 0:00:06]} 46. Ke3 {[%clk 0:00:08]}  Qe1+ {[%clk 0:00:06]} 47. Kf3 {[%clk 0:00:08]}  Qf1+ {[%clk 0:00:06]} 48. Ke3 {[%clk 0:00:08]}  Qe1+ {[%clk 0:00:06]} 49. Kd3 {[%clk 0:00:08]}  Qd1+ {[%clk 0:00:06]} 50. Kc3 {[%clk 0:00:08]}  Qe1+ {[%clk 0:00:06]} 51. Kb3 {[%clk 0:00:08]}  Qd1+ {[%clk 0:00:06]} 52. Kc3 {[%clk 0:00:08]} 1/2-1/2


[Site "https://www.chess.com"]

[Event "Titled Tuesday Blitz September 27 Late 2022"]
[White "Ismayil, Malak"]
[Black "Gonzalez Vega, Alejandro"]
[WhiteFideId "13412604"]
[BlackFideId "3510042"]
[WhiteElo "1879"]
[BlackElo "2220"]
[Result "1-0"]
[Round "11"]
[TimeControl "180+1"]
[Date "2022.09.28"]
[WhiteClock "0:00:57"]
[BlackClock "0:00:03"]

1. e4 {[%clk 0:03:00]}  c5 {[%clk 0:02:59]} 2. Nf3 {[%clk 0:03:01]}  a6 {[%clk 0:02:59]} 3. Nc3 {[%clk 0:03:00]}  e6 {[%clk 0:02:57]} 4. Be2 {[%clk 0:03:00]}  Nc6 {[%clk 0:02:55]} 5. O-O {[%clk 0:03:01]}  b5 {[%clk 0:02:50]} 6. d3 {[%clk 0:03:00]}  d6 {[%clk 0:02:47]} 7. Bg5 {[%clk 0:03:00]}  Qc7 {[%clk 0:02:45]} 8. Bf4 {[%clk 0:03:00]}  Nf6 {[%clk 0:02:42]} 9. a3 {[%clk 0:02:59]}  Be7 {[%clk 0:02:41]} 10. h3 {[%clk 0:02:59]}  O-O {[%clk 0:02:36]} 11. Re1 {[%clk 0:02:58]}  b4 {[%clk 0:02:34]} 12. axb4 {[%clk 0:02:58]}  cxb4 {[%clk 0:02:34]} 13. Nb1 {[%clk 0:02:58]}  e5 {[%clk 0:02:33]} 14. Bg3 {[%clk 0:02:54]}  h6 {[%clk 0:02:32]} 15. Nh4 {[%clk 0:02:54]}  d5 {[%clk 0:02:19]} 16. exd5 {[%clk 0:02:53]}  Nxd5 {[%clk 0:02:18]} 17. Nf3 {[%clk 0:02:52]}  Bf6 {[%clk 0:02:11]} 18. Nbd2 {[%clk 0:02:51]}  Nf4 {[%clk 0:02:05]} 19. Bxf4 {[%clk 0:02:49]}  exf4 {[%clk 0:02:04]} 20. Nc4 {[%clk 0:02:49]}  Be6 {[%clk 0:01:54]} 21. Qc1 {[%clk 0:02:48]}  a5 {[%clk 0:01:48]} 22. Rb1 {[%clk 0:02:35]}  a4 {[%clk 0:01:47]} 23. Nfd2 {[%clk 0:02:34]}  Nd4 {[%clk 0:01:44]} 24. Ne4 {[%clk 0:02:32]}  Be7 {[%clk 0:01:40]} 25. Bf1 {[%clk 0:02:26]}  a3 {[%clk 0:01:29]} 26. bxa3 {[%clk 0:02:25]}  bxa3 {[%clk 0:01:29]} 27. c3 {[%clk 0:02:25]}  Nf5 {[%clk 0:01:22]} 28. Ra1 {[%clk 0:02:24]}  Bxc4 {[%clk 0:01:00]} 29. dxc4 {[%clk 0:02:25]}  Rfb8 {[%clk 0:00:48]} 30. Nd2 {[%clk 0:02:21]}  Bf8 {[%clk 0:00:42]} 31. Qc2 {[%clk 0:02:21]}  Nh4 {[%clk 0:00:41]} 32. Qe4 {[%clk 0:02:17]}  Ng6 {[%clk 0:00:38]} 33. Nf3 {[%clk 0:02:12]}  a2 {[%clk 0:00:36]} 34. Nd4 {[%clk 0:02:11]}  Qb7 {[%clk 0:00:28]} 35. Qf5 {[%clk 0:02:05]}  Qb2 {[%clk 0:00:27]} 36. Nb5 {[%clk 0:02:01]}  Qd2 {[%clk 0:00:20]} 37. Red1 {[%clk 0:01:57]}  Qb2 {[%clk 0:00:19]} 38. Bd3 {[%clk 0:01:51]}  Rd8 {[%clk 0:00:17]} 39. Nc7 {[%clk 0:01:26]}  Rac8 {[%clk 0:00:16]} 40. Nd5 {[%clk 0:01:26]}  f3 {[%clk 0:00:16]} 41. Qxf3 {[%clk 0:01:23]}  Ne5 {[%clk 0:00:15]} 42. Qe4 {[%clk 0:01:22]}  Nxd3 {[%clk 0:00:16]} 43. Qxd3 {[%clk 0:01:23]}  Bc5 {[%clk 0:00:14]} 44. Qd2 {[%clk 0:01:22]}  Qxd2 {[%clk 0:00:13]} 45. Rxd2 {[%clk 0:01:23]}  Rb8 {[%clk 0:00:12]} 46. Rdxa2 {[%clk 0:01:20]}  Rbc8 {[%clk 0:00:11]} 47. Re2 {[%clk 0:01:17]}  Re8 {[%clk 0:00:11]} 48. Rxe8+ {[%clk 0:01:15]}  Rxe8 {[%clk 0:00:12]} 49. Kf1 {[%clk 0:01:15]}  Rd8 {[%clk 0:00:12]} 50. Ra5 {[%clk 0:01:14]}  Bf8 {[%clk 0:00:11]} 51. Ke2 {[%clk 0:01:13]}  Rc8 {[%clk 0:00:11]} 52. Kd3 {[%clk 0:01:13]}  h5 {[%clk 0:00:10]} 53. Rb5 {[%clk 0:01:10]}  g6 {[%clk 0:00:10]} 54. Nf6+ {[%clk 0:01:07]}  Kg7 {[%clk 0:00:10]} 55. Nd5 {[%clk 0:01:06]}  Bd6 {[%clk 0:00:10]} 56. f3 {[%clk 0:01:06]}  h4 {[%clk 0:00:10]} 57. Kd4 {[%clk 0:01:05]}  Rc6 {[%clk 0:00:10]} 58. c5 {[%clk 0:01:04]}  Bf8 {[%clk 0:00:09]} 59. Nb4 {[%clk 0:01:03]}  Rc8 {[%clk 0:00:09]} 60. c6 {[%clk 0:01:01]}  g5 {[%clk 0:00:10]} 61. Rxg5+ {[%clk 0:00:57]}  Kf6 {[%clk 0:00:10]} 62. Rg4 {[%clk 0:00:54]}  Bxb4 {[%clk 0:00:08]} 63. cxb4 {[%clk 0:00:55]}  Rxc6 {[%clk 0:00:08]} 64. Rxh4 {[%clk 0:00:56]}  Rc2 {[%clk 0:00:08]} 65. Rg4 {[%clk 0:00:55]}  Rd2+ {[%clk 0:00:07]} 66. Kc5 {[%clk 0:00:55]}  Rc2+ {[%clk 0:00:07]} 67. Kb6 {[%clk 0:00:55]}  Rb2 {[%clk 0:00:07]} 68. b5 {[%clk 0:00:55]}  Ke6 {[%clk 0:00:07]} 69. Kc6 {[%clk 0:00:55]}  Rc2+ {[%clk 0:00:07]} 70. Kb7 {[%clk 0:00:56]}  Kd7 {[%clk 0:00:07]} 71. b6 {[%clk 0:00:56]}  Rb2 {[%clk 0:00:06]} 72. h4 {[%clk 0:00:56]}  Rb5 {[%clk 0:00:04]} 73. Rg5 {[%clk 0:00:57]}  Rb2 {[%clk 0:00:03]} 74. h5 {[%clk 0:00:57]} 1-0


[Site "https://www.chess.com"]

[Event "Titled Tuesday Blitz September 27 Late 2022"]
[White "Leitao, Rafael"]
[Black "Adewumi, Tanitoluwa"]
[WhiteFideId "2101246"]
[BlackFideId "30966396"]
[WhiteElo "2609"]
[BlackElo "2579"]
[Result "1/2-1/2"]
[Round "11"]
[TimeControl "180+1"]
[Date "2022.09.28"]
[WhiteClock "0:00:07"]
[BlackClock "0:00:06"]

1. c4 {[%clk 0:03:00]}  e5 {[%clk 0:02:59]} 2. Nc3 {[%clk 0:02:59]}  Nc6 {[%clk 0:02:51]} 3. Nf3 {[%clk 0:02:59]}  Nf6 {[%clk 0:02:49]} 4. e4 {[%clk 0:02:57]}  d6 {[%clk 0:02:43]} 5. h3 {[%clk 0:02:48]}  g6 {[%clk 0:02:42]} 6. Be2 {[%clk 0:02:36]}  Bg7 {[%clk 0:02:42]} 7. d3 {[%clk 0:02:19]}  O-O {[%clk 0:02:40]} 8. Be3 {[%clk 0:02:19]}  Be6 {[%clk 0:02:39]} 9. Nd5 {[%clk 0:02:10]}  Nd7 {[%clk 0:02:33]} 10. d4 {[%clk 0:01:50]}  f5 {[%clk 0:02:24]} 11. dxe5 {[%clk 0:01:43]}  Ndxe5 {[%clk 0:02:08]} 12. Ng5 {[%clk 0:01:31]}  Bd7 {[%clk 0:01:49]} 13. f4 {[%clk 0:01:29]}  Nf7 {[%clk 0:01:47]} 14. Nxf7 {[%clk 0:01:29]}  Rxf7 {[%clk 0:01:48]} 15. exf5 {[%clk 0:01:28]}  Bxf5 {[%clk 0:01:46]} 16. Qd2 {[%clk 0:01:29]}  Qe8 {[%clk 0:01:42]} 17. O-O {[%clk 0:01:27]}  Ne7 {[%clk 0:01:36]} 18. Nxc7 {[%clk 0:01:27]}  Qc8 {[%clk 0:01:29]} 19. Nxa8 {[%clk 0:01:27]}  Qxa8 {[%clk 0:01:30]} 20. Bd4 {[%clk 0:01:27]}  Bh6 {[%clk 0:01:26]} 21. Bf3 {[%clk 0:01:12]}  Be6 {[%clk 0:01:00]} 22. Qe2 {[%clk 0:01:04]}  Qc8 {[%clk 0:00:37]} 23. Bxb7 {[%clk 0:00:54]}  Qxc4 {[%clk 0:00:16]} 24. Qxc4 {[%clk 0:00:51]}  Bxc4 {[%clk 0:00:17]} 25. Rfc1 {[%clk 0:00:47]}  d5 {[%clk 0:00:13]} 26. g3 {[%clk 0:00:45]}  Nf5 {[%clk 0:00:12]} 27. Bxd5 {[%clk 0:00:25]}  Bxd5 {[%clk 0:00:11]} 28. Rc8+ {[%clk 0:00:25]}  Bf8 {[%clk 0:00:08]} 29. Bc5 {[%clk 0:00:23]}  Nxg3 {[%clk 0:00:07]} 30. Re1 {[%clk 0:00:20]}  Ne4 {[%clk 0:00:07]} 31. Bxf8 {[%clk 0:00:18]}  Rxf8 {[%clk 0:00:08]} 32. Rxf8+ {[%clk 0:00:17]}  Kxf8 {[%clk 0:00:09]} 33. b3 {[%clk 0:00:13]}  Ke7 {[%clk 0:00:08]} 34. Rc1 {[%clk 0:00:13]}  Kd7 {[%clk 0:00:06]} 35. h4 {[%clk 0:00:12]}  Ng3 {[%clk 0:00:05]} 36. Kf2 {[%clk 0:00:11]}  Nf5 {[%clk 0:00:05]} 37. h5 {[%clk 0:00:11]}  gxh5 {[%clk 0:00:06]} 38. Rc5 {[%clk 0:00:12]}  Kd6 {[%clk 0:00:06]} 39. Ra5 {[%clk 0:00:12]}  h4 {[%clk 0:00:04]} 40. Rxa7 {[%clk 0:00:12]}  h5 {[%clk 0:00:04]} 41. Rh7 {[%clk 0:00:11]}  Ke6 {[%clk 0:00:02]} 42. Rxh5 {[%clk 0:00:11]}  Kf6 {[%clk 0:00:02]} 43. b4 {[%clk 0:00:08]}  Bxa2 {[%clk 0:00:02]} 44. b5 {[%clk 0:00:08]}  Bd5 {[%clk 0:00:03]} 45. b6 {[%clk 0:00:09]}  Kg6 {[%clk 0:00:03]} 46. Rg5+ {[%clk 0:00:09]}  Kf6 {[%clk 0:00:04]} 47. Rh5 {[%clk 0:00:09]}  Kg6 {[%clk 0:00:04]} 48. Rh8 {[%clk 0:00:09]}  Kg7 {[%clk 0:00:04]} 49. Rd8 {[%clk 0:00:09]}  Be4 {[%clk 0:00:03]} 50. Rc8 {[%clk 0:00:08]}  h3 {[%clk 0:00:02]} 51. Kg1 {[%clk 0:00:08]}  Nd4 {[%clk 0:00:01]} 52. Kh2 {[%clk 0:00:07]}  Nf3+ {[%clk 0:00:01]} 53. Kxh3 {[%clk 0:00:06]}  Bf5+ {[%clk 0:00:01]} 54. Kg3 {[%clk 0:00:05]}  Bxc8 {[%clk 0:00:02]} 55. Kxf3 {[%clk 0:00:06]}  Bb7+ {[%clk 0:00:03]} 56. Kg4 {[%clk 0:00:06]}  Kf6 {[%clk 0:00:04]} 57. f5 {[%clk 0:00:05]}  Bc8 {[%clk 0:00:04]} 58. Kf4 {[%clk 0:00:05]}  Bb7 {[%clk 0:00:05]} 59. Kg4 {[%clk 0:00:05]}  Bc6 {[%clk 0:00:05]} 60. Kf4 {[%clk 0:00:06]}  Bd5 {[%clk 0:00:06]} 61. Kg4 {[%clk 0:00:06]}  Bb7 {[%clk 0:00:06]} 62. Kf4 {[%clk 0:00:07]} 1/2-1/2


[Site "https://www.chess.com"]